[Event "MPL-4 Indian Chess Tour 2022"]
[Site "Chess24"]
[Date "2022.09.27"]
[Round "10.3"]
[White "Adhiban, B.."]
[Black "Ganguly, Surya Shekhar"]
[Result "1-0"]
[ECO "A13"]
[WhiteElo "2603"]
[BlackElo "2589"]
[Annotator "TA"]
[PlyCount "109"]
[EventDate "2022.09.29"]
[EventType "tourn (rapid)"]
[EventCountry "NET"]
[SourceTitle "playchess.com"]
[Source "ChessBase"]
[SourceQuality "1"]
[WhiteTeam "India"]
[BlackTeam "India"]
[WhiteTeamCountry "IND"]
[BlackTeamCountry "IND"]
[TimeControl "900+10"]

{[%evp 12,109,24,0,16,0,26,25,26,13,24,12,9,12,65,38,77,80,81,86,93,91,91,91,87,93,126,132,125,138,139,138,137,138,190,118,117,117,138,126,176,181,226,221,245,243,247,241,249,220,409,401,567,229,552,501,553,544,464,377,979,997,933,806,387,387,1326,1241,1889,1743,2014,1912,1679,1590,29970,29971,29971,29972,29970,29972,29972,29973,29973,29974,29973,29972,29974,29972,29978,29979,29979,29980,29980,29981,29981,29980,29980,29981,29981,5299]} 1. c4 {[%emt 0:00:00]} c5 {[%emt 0:00:00]} 2. b3 {[%emt 0:00:30]} Nf6 {[%emt 0:00:26]} 3. Bb2 {[%emt 0:00:02]} Nc6 {[%emt 0:00:10]} 4. e3 {[%emt 0:00:05]} e6 {[%emt 0:00:14]} 5. Nf3 {[%emt 0:00:13]} d5 {[%emt 0:00:07]} 6. cxd5 {[%emt 0:00:20]} exd5 {[%emt 0:00:42]} 7. Be2 {[%emt 0:00:01]} d4 {[%emt 0:01:26] is more profitable than 7...Bd6 at the moment. A13: English Opening: 1...e6.} 8. exd4 {[%emt 0:00:02]} Nxd4 {[%emt 0:00:26]} 9. Nxd4 {[%emt 0:00:03]} cxd4 {[%emt 0:00:00] White has an edge.} 10. O-O {[%emt 0:04:39]} Be7 {[%emt 0:00:03]} 11. Bf3 {[%emt 0:00:05]} O-O {[%emt 0:00:04]} 12. Na3 {[%emt 0:00:21] [#]} Rb8 $146 {[%emt 0:03:33]} ({Black should try} 12... a6 $11) ({Predecessor:} 12... a6 13. Nc4 Rb8 14. Rc1 Re8 15. Re1 Be6 16. g3 Bc5 17. Bg2 h6 18. h3 Nd7 19. Kh2 b5 20. Ne5 Nxe5 21. Rxe5 Be7 22. Rc6 Rb6 23. Qc1 {½-½ (23) Andersen,J (2211)-Zubov,Y (2353) ICCF email 2017}) 13. Nb5 $14 {[%emt 0:00:38][%csl LRa7,LRd4]} Bc5 {[%emt 0:00:09]} 14. Rc1 {[%emt 0:00:09]} Qb6 {[%emt 0:00:19]} 15. Qc2 {[%emt 0:01:17] White is more active.} Qxb5 {[%emt 0:01:23]} 16. Qxc5 {[%emt 0:00:02]} Qxc5 {[%emt 0:00:03]} 17. Rxc5 {[%emt 0:00:01]} Rd8 {[%emt 0:00:01]} 18. Rc4 {[%emt 0:01:01]} d3 {[%emt 0:00:11]} 19. Be5 {[%emt 0:00:11] This bishop pair is nice.} Be6 {[%emt 0:00:45]} 20. Rc3 {[%emt 0:01:16]} Rbc8 {[%emt 0:00:09]} 21. Bxb7 {[%emt 0:00:03]} Rxc3 {[%emt 0:00:02]} 22. Bxc3 {[%emt 0:00:01]} Nd5 {[%emt 0:00:24] [#]} (22... Rd7 $16 {was necessary.}) 23. Bxd5 {[%emt 0:00:07]} (23. Ba5 $1 $18 {[%cal Ra5d8]} Rd7 24. Bc6) 23... Rxd5 $18 {[%emt 0:00:09][%mdl 4096] Endgame KRB-KRB} 24. f3 {[%emt 0:00:03]} f5 {[%emt 0:00:44]} 25. Kf2 {[%emt 0:00:03]} f4 {[%emt 0:00:03]} (25... Rd6 $16 26. Ke3 g5) 26. Re1 {[%emt 0:00:08]} Kf7 {[%emt 0:00:16] [#]} 27. Bxg7 $1 {[%emt 0:02:08][%mdl 512]} Ra5 {[%emt 0:00:02]} (27... h5 28. Bc3) 28. Bc3 {[%emt 0:00:02]} Rxa2 {[%emt 0:00:01]} 29. b4 {[%emt 0:00:00]} Bf5 {[%emt 0:00:30]} 30. Re5 {[%emt 0:00:29]} Kg6 {[%emt 0:00:01]} (30... Bg6 31. h4 Kf8) 31. Re7 {[%emt 0:02:40]} h5 {[%emt 0:00:39]} (31... Ra4 {was called for.} 32. Rg7+ Kh6) 32. Rg7+ {[%emt 0:00:12]} Kh6 {[%emt 0:00:02]} 33. Rf7 {[%emt 0:00:01]} Bg6 {[%emt 0:01:06]} 34. Rxf4 {[%emt 0:00:02]} Ra6 {[%emt 0:00:01]} 35. Rf6 {[%emt 0:00:29] Against Re6} Rxf6 {[%emt 0:00:12]} (35... Rb6 36. Rf8 h4) 36. Bxf6 {[%emt 0:00:00] KB-KB} Be8 {[%emt 0:00:00]} 37. h3 {[%emt 0:00:38]} Kg6 {[%emt 0:00:30]} 38. Bd4 {[%emt 0:00:04]} a6 $2 {[%emt 0:00:01]} (38... Kf7 39. Bxa7 Ke6) 39. g4 {[%emt 0:00:02][%cal Bg2g4,Bg4h5,Bh5h6][%mdl 32]} Kf7 {[%emt 0:01:46]} 40. gxh5 {[%emt 0:01:01]} Ke6 {[%emt 0:00:18]} 41. h6 {[%emt 0:00:01] White wants to mate with h7.} Bg6 {[%emt 0:00:02]} 42. Ke3 {[%emt 0:00:02] Kf4 would kill now.} Kd5 {[%emt 0:00:13]} 43. Bc3 {[%emt 0:00:05] White mates.} Bh7 {[%emt 0:00:03]} 44. Kf4 {[%emt 0:00:01]} Ke6 {[%emt 0:00:08]} 45. Kg5 {[%emt 0:00:02]} Kf7 {[%emt 0:00:09]} 46. f4 {[%emt 0:00:16][%cal Bf3f4,Bf4f5,Bf5f6][%mdl 32]} Ke6 {[%emt 0:00:03]} 47. h4 {[%emt 0:00:02][%cal Bh3h4,Bh4h5][%mdl 32]} Bf5 {[%emt 0:00:53]} 48. h5 {[%emt 0:00:34]} Bh7 {[%emt 0:00:04]} 49. Bb2 {[%emt 0:00:07]} Ke7 {[%emt 0:01:03]} 50. f5 {[%emt 0:00:04]} Kf7 {[%emt 0:00:01]} 51. Kf4 {[%emt 0:00:03]} Ke7 {[%emt 0:00:02]} 52. Ke5 {[%emt 0:00:01]} Kf7 {[%emt 0:00:01]} 53. Bc3 {[%emt 0:00:03]} Ke7 {[%emt 0:00:02]} 54. f6+ {[%emt 0:00:12]} Kf7 {[%emt 0:00:26]} 55. Kd6 {[%emt 0:00:01] Weighted Error Value: White=0.07 (flawless) /Black=0.55} (55. Bd4 $142 Bg8 56. Kd6 Bh7 57. Kc7 Bg8 58. Kb7 Kf8 59. Kb6 Kf7 60. Kxa6) 1-0

[Event "MPL-4 Indian Chess Tour 2022"]
[Site "Chess24"]
[Date "2022.09.27"]
[Round "10.4"]
[White "Karthikeyan, Murali"]
[Black "Iniyan, P."]
[Result "0-1"]
[ECO "B86"]
[WhiteElo "2623"]
[BlackElo "2556"]
[Annotator "TA"]
[PlyCount "80"]
[EventDate "2022.09.29"]
[EventType "tourn (rapid)"]
[EventCountry "NET"]
[SourceTitle "playchess.com"]
[Source "ChessBase"]
[SourceQuality "1"]
[WhiteTeam "India"]
[BlackTeam "India"]
[WhiteTeamCountry "IND"]
[BlackTeamCountry "IND"]
[TimeControl "900+10"]

{[%evp 15,80,0,0,0,15,9,10,15,32,35,38,39,10,16,39,47,43,14,14,0,0,-17,0,-16,0,0,-18,-39,-12,-40,-27,-44,-20,-25,0,-89,-49,-89,-97,-87,-81,-152,-160,-154,-152,-131,-99,-193,-91,-91,-55,-153,-122,-124,-118,-130,-128,-129,-99,-96,-91,-170,-219,-243,-242,-714,-321]} 1. e4 {[%emt 0:00:00]} c5 {[%emt 0:00:00]} 2. Nf3 {[%emt 0:00:02]} d6 {[%emt 0:00:01]} 3. d4 {[%emt 0:00:01]} cxd4 {[%emt 0:00:00]} 4. Nxd4 {[%emt 0:00:00]} Nf6 {[%emt 0:00:00]} 5. Nc3 {[%emt 0:00:01]} a6 {[%emt 0:00:00]} 6. Bc4 {[%emt 0:00:11]} e6 {[%emt 0:00:03]} 7. O-O {[%emt 0:00:01] Recently 7.Be3 got a lot of attention.} b5 {[%emt 0:00:02]} 8. Bd3 {[%emt 0:00:01]} Bb7 {[%emt 0:00:17]} 9. Re1 {[%emt 0:00:11] B86: Sicilian Scheveningen/Najdorf: 6 Bc4, without early ...b5.} Be7 {[%emt 0:00:24]} 10. a4 {[%emt 0:00:01]} b4 {[%emt 0:00:22]} 11. Na2 {[%emt 0:00:02] The position is equal.} O-O {[%emt 0:00:36]} 12. Nxb4 {[%emt 0:00:02]} d5 {[%emt 0:00:04]} 13. e5 $1 {[%emt 0:00:01]} Bxb4 {[%emt 0:00:43] [#]} 14. Bg5 $146 {[%emt 0:00:01][%mdl 64] Pin} ({Predecessor:} 14. c3 Bc5 15. exf6 Qxf6 16. Qg4 h6 17. Qg3 Rc8 18. Nb3 Bb6 19. Be3 Bxe3 20. Rxe3 {1-0 (26) Neumann,U-Von Rosenberg,C DESC email 2010}) 14... Be7 {[%emt 0:02:32]} (14... Bxe1 $2 15. exf6 Bxf2+ 16. Kxf2 $17) 15. exf6 {[%emt 0:00:38]} Bxf6 {[%emt 0:00:00]} 16. Bxf6 {[%emt 0:02:17]} (16. Qh5 g6 17. Bxf6 Qxf6 $11) 16... Qxf6 {[%emt 0:00:00]} 17. c3 {[%emt 0:00:01]} Nd7 {[%emt 0:02:03]} 18. a5 {[%emt 0:01:15]} e5 {[%emt 0:00:42]} 19. Nf5 {[%emt 0:01:38][%cal Of5g7]} d4 {[%emt 0:01:19]} 20. cxd4 {[%emt 0:02:58]} e4 $1 {[%emt 0:00:05]} 21. Rxe4 {[%emt 0:01:13] Threatens to win with Re3.} Bxe4 {[%emt 0:00:31]} 22. Bxe4 {[%emt 0:00:00]} Rab8 {[%emt 0:00:12]} 23. b3 {[%emt 0:00:43]} Rfd8 $36 {[%emt 0:00:21][%cal Od7c5][%mdl 3072] aiming for ...Nc5! Black has compensation. Black is more active.} (23... Rfe8 $5 {[%cal Re8e4]} 24. Bc2 Rb5 $11) 24. Rc1 {[%emt 0:01:18] Against Nc5. Black must now prevent Rc6.} Qe6 {[%emt 0:00:57]} (24... Re8 $5 {[%cal Re8e4]} 25. Bd3 g6 $11) 25. Bc2 {[%emt 0:03:17]} (25. Qg4 g6 26. Ne3 Qxg4 27. Nxg4 Kg7 $17) (25. Bd3 $1 $11 {keeps the balance.}) 25... g6 $1 $17 {[%emt 0:00:45]} 26. Ne3 {[%emt 0:00:13]} Nf6 {[%emt 0:00:37] Against d5} 27. g3 {[%emt 0:00:44]} h5 {[%emt 0:01:39]} 28. h4 {[%emt 0:00:41]} (28. Qd2 $142) 28... Rb4 {[%emt 0:01:15]} 29. Nc4 {[%emt 0:01:09]} Rb5 {[%emt 0:00:03]} (29... Qh3 30. Qf3 Ng4 31. Re1 $17) 30. Qd2 {[%emt 0:00:44]} Rbd5 {[%emt 0:00:14]} 31. Rd1 {[%emt 0:00:28] [#]} (31. Re1 $17 {was worth a try.} Qh3 32. Qf4) 31... Qh3 {[%emt 0:02:48]} ({Inferior is} 31... Rxd4 32. Qxd4 Rxd4 33. Rxd4 $17) (31... Ng4 $1 $19 32. Re1 Qf6) 32. Ne3 {[%emt 0:00:04]} Ng4 {[%emt 0:00:01]} 33. Nf1 {[%emt 0:00:29]} (33. Nxd5 $15 Qh2+ 34. Kf1 Qh1+ 35. Ke2 Qxd5 36. Re1) 33... R5d6 {[%emt 0:00:38] Black is much more active.} ({Stronger than} 33... Rxd4 34. Qxd4 Rxd4 35. Rxd4 $17) 34. Be4 {[%emt 0:00:04] [#] And now Bg2 would win.} Nf6 $1 {[%emt 0:00:02]} ({Not} 34... Rxd4 35. Qxd4 Rxd4 36. Rxd4 $15) 35. Bg2 {[%emt 0:00:17]} Qe6 {[%emt 0:00:13]} 36. Qc3 {[%emt 0:00:09]} Qe2 {[%emt 0:00:25]} 37. Ne3 {[%emt 0:00:13]} Ng4 {[%emt 0:00:03]} 38. Rd2 {[%emt 0:00:11]} (38. Qc2 $17 Qxc2 39. Nxc2) 38... Qe1+ $19 {[%emt 0:00:00]} 39. Nf1 {[%emt 0:00:04]} Rxd4 {[%emt 0:00:02][%mdl 64] Deflection, Decoy} 40. Rxd4 {[%emt 0:00:08]} (40. Rc2 Qe6 41. Bh3) 40... Qxf2+ {[%emt 0:00:01] Weighted Error Value: White=0.35/Black=0.14 (very precise)} 0-1

[Event "MPL-4 Indian Chess Tour 2022"]
[Site "Chess24"]
[Date "2022.09.27"]
[Round "10.5"]
[White "Pranav, V."]
[Black "Aronyak Ghosh"]
[Result "1-0"]
[ECO "B12"]
[WhiteElo "2530"]
[BlackElo "2519"]
[Annotator "TA"]
[PlyCount "117"]
[EventDate "2022.09.29"]
[EventType "tourn (rapid)"]
[EventCountry "NET"]
[SourceTitle "playchess.com"]
[Source "ChessBase"]
[SourceQuality "1"]
[WhiteTeam "India"]
[BlackTeam "India"]
[WhiteTeamCountry "IND"]
[BlackTeamCountry "IND"]
[TimeControl "900+10"]

{[%evp 9,117,6,6,0,10,0,9,0,16,0,8,0,0,-14,0,-7,-7,-7,0,-6,0,-7,-7,-7,-7,-7,5,0,0,0,25,10,28,7,24,0,62,-8,-20,-20,-14,-32,0,-51,-2,-14,0,-8,-8,-14,0,-2,0,0,0,0,0,0,0,0,0,0,0,0,0,0,0,0,412,96,120,125,116,108,332,350,342,335,314,271,351,348,330,323,300,288,355,350,354,341,330,329,300,275,275,245,645,604,366,366,785,738,666,493,1464,712,29953,29960,29973,29965]} 1. e4 {[%emt 0:00:00]} c6 {[%emt 0:00:00]} 2. d4 {[%emt 0:00:02]} d5 {[%emt 0:00:02]} 3. e5 {[%emt 0:00:00]} Bf5 {[%emt 0:00:01]} 4. h4 {[%emt 0:00:01]} h5 {[%emt 0:00:02]} 5. Bd3 {[%emt 0:00:01]} Bxd3 {[%emt 0:00:01]} 6. Qxd3 {[%emt 0:00:00][%cal Oe5e6] B12: Caro-Kann: Advance Variation.} Qa5+ {[%emt 0:00:01]} 7. Nd2 {[%emt 0:00:01][%cal Oe5e6] e6! is the strong threat.} e6 $1 {[%emt 0:00:03]} 8. Ngf3 {[%emt 0:00:02] The position is equal.} Nh6 {[%emt 0:00:05]} 9. O-O {[%emt 0:00:03]} Nf5 {[%emt 0:00:01]} 10. a4 {[%emt 0:00:01]} Be7 {[%emt 0:01:47]} 11. g3 {[%emt 0:01:27]} Nd7 {[%emt 0:00:31]} 12. Nb3 {[%emt 0:02:09]} Qa6 {[%emt 0:00:27]} 13. Qd1 {[%emt 0:00:06]} c5 {[%emt 0:01:05] [#]} 14. c3 $1 $146 {[%emt 0:00:01][%mdl 8] A relevant novelty.} ({Predecessor:} 14. dxc5 Bxc5 15. c3 Rc8 16. Nbd4 Bxd4 17. Nxd4 Nxd4 18. cxd4 f6 19. Bf4 fxe5 20. dxe5 {1-0 (36) Perez Ponsa,F (2561)-Peralta,F (2573) Villa Martelli 2021}) 14... Rc8 {[%emt 0:00:38]} 15. Re1 {[%emt 0:00:47]} g6 {[%emt 0:02:05]} 16. Bg5 {[%emt 0:00:29]} Bxg5 {[%emt 0:00:05]} 17. Nxg5 {[%emt 0:00:13]} Kf8 {[%emt 0:00:54]} 18. Kg2 {[%emt 0:01:24]} Kg7 {[%emt 0:00:07]} 19. Ra3 {[%emt 0:02:47]} Qb6 {[%emt 0:01:05]} 20. Qd2 {[%emt 0:00:18]} Rhd8 {[%emt 0:03:31]} 21. Re2 {[%emt 0:01:19]} Qa6 {[%emt 0:00:23]} 22. Re1 {[%emt 0:00:10]} Nb6 {[%emt 0:00:35]} (22... Qb6 $11) 23. Qf4 {[%emt 0:01:34]} (23. dxc5 $2 Nc4 24. Qf4 Nxa3 25. bxa3 Re8 $17) (23. Nxc5 $14 Rxc5 24. dxc5) 23... Nc4 $11 {[%emt 0:00:03][%cal Bb6c4,Bc4a5,Ba5c6][%mdl 32]} 24. Ra2 {[%emt 0:00:03]} b6 {[%emt 0:00:08]} 25. Nf3 {[%emt 0:00:21]} Qb7 {[%emt 0:00:21]} 26. Rh1 {[%emt 0:00:29]} (26. a5 $11) 26... Rh8 {[%emt 0:00:11]} (26... Rf8 $15 27. a5 (27. Qg5 f6 $15) 27... Nxa5 28. Nxa5 bxa5) 27. Nc1 {[%emt 0:00:18]} Qe7 {[%emt 0:00:35]} 28. Ne2 {[%emt 0:00:55]} Na5 {[%emt 0:00:06]} 29. Raa1 {[%emt 0:00:17]} Nc6 {[%emt 0:00:36]} 30. Rac1 {[%emt 0:00:30]} cxd4 {[%emt 0:00:18]} 31. Nexd4 {[%emt 0:00:35]} Ncxd4 {[%emt 0:00:03]} 32. Nxd4 {[%emt 0:00:38]} Rc4 {[%emt 0:00:17]} 33. b3 {[%emt 0:00:03]} Rc5 {[%emt 0:00:22]} 34. Nxf5+ {[%emt 0:00:23]} exf5 {[%emt 0:00:35]} 35. Rhe1 {[%emt 0:00:05]} Qe6 {[%emt 0:00:02]} 36. Qd4 {[%emt 0:00:08]} Rhc8 {[%emt 0:00:02]} 37. Re3 {[%emt 0:00:02]} Kg8 {[%emt 0:00:02]} 38. Rd1 {[%emt 0:00:07]} R8c6 $2 {[%emt 0:00:37][%mdl 8192]} (38... f4 $11 {and Black has nothing to worry.} 39. Qxf4 Rxc3) 39. b4 $2 {[%emt 0:00:17]} (39. c4 $1 $18 {[%cal Rc4d5] is the precise move to win.} f4 40. gxf4 (40. Qxf4 dxc4 41. bxc4 Kg7 $11) 40... Qg4+ 41. Rg3) 39... Rc4 $16 {[%emt 0:00:03]} 40. Qxd5 {[%emt 0:00:00] White is more active.} Qxd5+ {[%emt 0:00:01]} 41. Rxd5 {[%emt 0:00:01]} Rxc3 $2 {[%emt 0:00:04] Black cannot hold the game after this.} (41... Kf8 $16) 42. Rxc3 $18 {[%emt 0:00:02]} Rxc3 $16 {[%emt 0:00:00][%mdl 4096] Endgame [#] KR-KR} 43. Rd8+ $1 {[%emt 0:00:01]} Kg7 {[%emt 0:00:01]} 44. Rd7 {[%emt 0:00:01]} Rc4 {[%emt 0:01:18]} 45. e6 $1 {[%emt 0:00:17] Hoping for e7.} ({Weaker is} 45. Rxa7 Rxb4 46. Kf3 Kf8 $11) 45... Rxb4 {[%emt 0:00:07]} 46. Rxf7+ {[%emt 0:00:02]} Kg8 {[%emt 0:00:01]} 47. Rxa7 {[%emt 0:00:01] Threatens to win with Ra8+.} Re4 {[%emt 0:00:01]} 48. Kf3 {[%emt 0:00:10]} Kf8 {[%emt 0:00:59]} 49. Rf7+ {[%emt 0:00:54][%cal Ba7f7,Bf7f6,Bf6b6,Bb6c6][%mdl 32]} Ke8 {[%emt 0:00:02] [#]} 50. Rf6 $1 {[%emt 0:00:30]} Rg4 {[%emt 0:00:08]} 51. e7 $1 {[%emt 0:00:10]} Kxe7 {[%emt 0:00:52]} 52. Rxb6 {[%emt 0:00:01] aiming for a5.} Kf7 $2 {[%emt 0:00:42]} (52... Rxa4 53. Rxg6 Kf7) 53. a5 $18 {[%emt 0:00:02][%cal Ba4a5,Ba5a6,Ba6a7][%mdl 32]} Ra4 {[%emt 0:00:08]} 54. a6 {[%emt 0:00:02]} Ra2 $2 {[%emt 0:00:18]} (54... Re4 55. Rb8 Ra4) 55. Rc6 {[%emt 0:00:06]} Kg7 {[%emt 0:00:06]} 56. Ke3 {[%emt 0:00:04] And now Kd4 would win.} Kf7 {[%emt 0:00:08]} (56... Ra4 $142 57. Kd3 f4) 57. Kd4 {[%emt 0:00:43]} Rxf2 {[%emt 0:00:11]} 58. Kc5 {[%emt 0:00:01]} Rb2 {[%emt 0:00:24]} 59. a7 {[%emt 0:00:07] Weighted Error Value: White=0.17 (very precise) /Black=0.47} 1-0

[Event "MPL-4 Indian Chess Tour 2022"]
[Site "Chess24"]
[Date "2022.09.27"]
[Round "10.6"]
[White "Puranik, Abhimanyu"]
[Black "Bharath Subramaniyam H"]
[Result "0-1"]
[ECO "D45"]
[WhiteElo "2603"]
[BlackElo "2495"]
[Annotator "TA"]
[PlyCount "78"]
[EventDate "2022.09.29"]
[EventType "tourn (rapid)"]
[EventCountry "NET"]
[SourceTitle "playchess.com"]
[Source "ChessBase"]
[SourceQuality "1"]
[WhiteTeam "India"]
[BlackTeam "India"]
[WhiteTeamCountry "IND"]
[BlackTeamCountry "IND"]
[TimeControl "900+10"]

{[%evp 19,78,0,0,0,19,9,8,9,28,7,12,0,0,0,0,-16,18,-45,-35,-31,-38,-38,-26,-35,-42,-51,-45,-52,-11,-6,-17,-12,-15,-2,0,0,0,0,0,-31,-59,-54,-68,-56,0,-98,-63,-217,-189,-405,-394,-695,-680,-664,-672,-733,-705,-3246,-2692,-1513,-827]} 1. c4 {[%emt 0:00:00]} c6 {[%emt 0:00:00]} 2. Nf3 {[%emt 0:00:09]} d5 {[%emt 0:00:04]} 3. e3 {[%emt 0:00:01]} Nf6 {[%emt 0:00:03]} 4. Nc3 {[%emt 0:00:02]} e6 {[%emt 0:00:04]} 5. Qc2 {[%emt 0:00:16]} Bd6 {[%emt 0:00:10]} 6. d4 {[%emt 0:00:05]} Nbd7 {[%emt 0:00:41]} 7. b3 {[%emt 0:00:06]} O-O {[%emt 0:00:47]} 8. Be2 {[%emt 0:00:26]} b6 {[%emt 0:00:34]} 9. Bb2 {[%emt 0:00:02]} Bb7 {[%emt 0:00:09]} 10. O-O {[%emt 0:00:02]} Qe7 {[%emt 0:00:20]} 11. a4 {[%emt 0:00:03] D45: Semi-Slav: 5 e3.} Bb4 {[%emt 0:02:32]} 12. Na2 {[%emt 0:00:19]} Bd6 {[%emt 0:00:03]} 13. a5 {[%emt 0:00:05][%cal Oa5a6] The position is equal.} bxa5 {[%emt 0:03:06]} 14. c5 {[%emt 0:00:43]} Bc7 {[%emt 0:00:04]} 15. Nc1 {[%emt 0:00:15][%mdl 1024] [#] White has compensation.} Ne4 $146 {[%emt 0:01:20]} ({Predecessor:} 15... e5 16. Nxe5 Nxe5 17. dxe5 Bxe5 18. Bxe5 Qxe5 19. Rxa5 Bc8 20. Nd3 Qe7 21. Nb4 Bd7 {1-0 (60) Volkov,S (2570)-Morgachev,S (2133) Cheliabinsk 2020}) 16. Bd3 {[%emt 0:00:07]} f5 {[%emt 0:01:02]} 17. Ne2 {[%emt 0:00:03]} g5 {[%emt 0:00:09][%cal Bg7g5,Bg5g4][%mdl 32]} 18. Rfc1 {[%emt 0:00:31]} ({White should try} 18. Ne5 $1 $11) 18... g4 {[%emt 0:00:51]} 19. Ne5 {[%emt 0:00:04]} ({Don't play} 19. Bxe4 fxe4 20. Ne5 Nxe5 21. dxe5 Qf7 $17) 19... Nxe5 {[%emt 0:01:42]} 20. dxe5 {[%emt 0:00:05]} Qg7 {[%emt 0:00:17]} 21. Nf4 {[%emt 0:00:28]} Bc8 {[%emt 0:00:26]} ({Much less strong is} 21... Bxe5 22. Nxe6 Bxh2+ 23. Kf1 $14) 22. Bd4 {[%emt 0:01:47]} Bxe5 {[%emt 0:00:28]} 23. Nh5 {[%emt 0:00:53]} Qc7 {[%emt 0:00:27]} (23... Bxh2+ $5 24. Kxh2 Qh6 $15) 24. Bxe5 {[%emt 0:00:52]} Qxe5 {[%emt 0:00:00]} 25. Rxa5 {[%emt 0:01:34]} Qc7 {[%emt 0:00:02]} 26. Rca1 {[%emt 0:00:08]} e5 {[%emt 0:00:10][%cal Be6e5,Be5f4,Bf4f3][%mdl 32]} 27. b4 {[%emt 0:00:13]} Qf7 {[%emt 0:01:34]} 28. Ng3 {[%emt 0:00:06]} Ng5 {[%emt 0:00:05] Hoping for ...f4.} 29. Ne2 {[%emt 0:04:53]} f4 {[%emt 0:00:17]} 30. exf4 {[%emt 0:00:07]} exf4 {[%emt 0:00:00]} 31. Qd2 {[%emt 0:00:23]} Qf6 {[%emt 0:00:41]} (31... a6 $15 32. Nd4 Qf6) 32. Nd4 {[%emt 0:00:15]} Kh8 {[%emt 0:00:39]} 33. Qc3 {[%emt 0:01:37] This move loses the game for White.} ({Better is} 33. Nb3 $15) 33... f3 $19 {[%emt 0:00:41] White must now prevent ...fxg2.} 34. g3 {[%emt 0:00:01] [#]} (34. R5a3 fxg2 35. Kxg2) 34... Ne6 $1 {[%emt 0:00:20]} 35. Rxa7 $2 {[%emt 0:00:04]} (35. Nb5 cxb5 36. Qxf6+ Rxf6 37. Rxa7 Rxa7 38. Rxa7) 35... Rxa7 {[%emt 0:00:02] Black is clearly winning.} 36. Rxa7 {[%emt 0:00:01]} Nxd4 {[%emt 0:00:23]} 37. Kf1 {[%emt 0:00:32] Against Ne2} Bf5 {[%emt 0:00:22]} 38. Ra6 {[%emt 0:01:40]} Bxd3+ {[%emt 0:00:07]} 39. Qxd3 {[%emt 0:00:17]} Qe5 {[%emt 0:00:12] Weighted Error Value: White=0.57/Black=0.10 (very precise)} 0-1